[Event "Sinquefield Cup 4th"]
[Site "Saint Louis"]
[Date "2016.08.14"]
[Round "9"]
[White "Vachier Lagrave, Maxime"]
[Black "So, Wesley"]
[Result "1/2-1/2"]
[ECO "C67"]
[WhiteElo "2819"]
[BlackElo "2771"]
[Annotator "CB"]
[PlyCount "94"]
[EventDate "2016.08.05"]
[EventType "tourn"]
[EventRounds "9"]
[EventCountry "USA"]
[EventCategory "22"]
[SourceTitle "CBM 174"]
[Source "ChessBase"]
[SourceDate "2016.09.13"]
[SourceVersion "1"]
[SourceVersionDate "2016.09.13"]
[SourceQuality "1"]
[TimeControl "60"]

1. e4 {(2s)} e5 {(1s)} 2. Nf3 {(5s)} Nc6 {(2s)} 3. Bb5 {(2s)} Nf6 {(4s)} 4. O-O
{Sich in einer Must-Win-Situation auf das Berliner Endspiel einzulassen wurde
von Kasparov kritisiert - wer könnte es besser wissen als der russische
Ex-Weltmeister, der im Jahre 2000 den Titel an Kramnik abgeben musste und dies
unter anderem aufgrund der Tatsache weil er sich in seinen Weißpartien die
Zähne an der Berliner Mauer ausbiß (4s)} Nxe4 {(2s)} 5. d4 {(4s)} Nd6 {(2s)} 6.
Bxc6 {(4s)} dxc6 {(2s)} 7. dxe5 {(5s)} Nf5 {(2s)} 8. Qxd8+ {(5s)} Kxd8 {(2s)}
9. h3 {(5s)} Ke8 {(3s)} 10. Nc3 {(3s)} h5 {(2s)} 11. Bg5 {(6s)} (11. Bf4 Be7
12. Rad1 Be6 13. Ng5 Rh6 14. Rfe1 {probierte MVL in der 7. Runde gegen Nakamura
}) 11... Be6 {(8s)} 12. Rad1 {(3s)} (12. a3 {war MVLs Wahl in einer Partie
gegen Nielsen 2011.} Bd5 13. Nh4 Be6 14. Rad1 Be7 15. Nf3 Rd8 16. Rxd8+ Kxd8
17. Rd1+ Kc8 18. Bxe7 Nxe7 19. Ng5 Ng6 20. Nxe6 fxe6 21. b3 Rf8 22. Rd3 h4 23.
Rd4 Rd8 24. Rg4 Nxe5 25. Rxh4 Rd2 26. Rh8+ Kd7 27. Rh7 Rxc2 28. Rxg7+ Ke8 29.
Ne4 Nf7 30. h4 c5 31. Ng5 Nxg5 32. Rxg5 c4 33. bxc4 Rxc4 34. h5 c5 35. g3 {
1-0 (35) Vachier Lagrave,M (2710)-Nielsen,P (2693) Beijing 2011}) 12... Be7 {
(1439 s)} 13. b3 {(7s)} a5 {(195s)} (13... h4 {wurde bisher zweimal von
Kramnik gespielt, doch So weicht verzichtet auf den Raumgewinn am Königsflügel.
Der Bauer auf h4 sichert die Postion des Sf5 endgültig, doch kettet diesen
allerdings auch an die Verteidigung des Bauern.} 14. Ne4 (14. Rfe1 Rd8 15.
Rxd8+ Kxd8 16. Ne4 b6 17. Bf4 Kc8 18. Neg5 Bxg5 19. Bxg5 Bd5 20. Nh2 c5 21. Rd1
Bc6 22. c3 a5 23. Ng4 Bd7 24. f3 a4 25. Kf2 {1/2-1/2 (25) Aronian,L (2820)
-Kramnik,V (2801) Zuerich 2012}) 14... a5 (14... b6 15. c4 a5 16. Rd2 Rd8 17.
Rfd1 Rxd2 18. Bxd2 c5 19. Bf4 a4 20. Nc3 axb3 21. axb3 Bd8 22. Kf1 Rg8 23. Ne4
Bc8 24. Ra1 Bb7 25. Neg5 f6 26. exf6 gxf6 27. Ne4 Kd7 28. Rd1+ Kc8 29. Re1 Rg7
30. Nfd2 Nd4 31. f3 Bc6 32. Nf2 Bd7 33. Ng4 Bf5 34. Kf2 Kd7 35. Ne3 Bh7 36. Nd5
Bc2 37. Ne3 Bd3 38. Nd5 Nxb3 39. Nxb3 Bxc4 40. Nxc5+ bxc5 41. Rd1 Kc8 42. Nc3
Rd7 43. Rc1 Bd3 44. Na4 c4 45. Nb2 Rd5 46. Nxc4 Rc5 47. Nb2 Rxc1 48. Bxc1 Bb5
49. g3 hxg3+ 50. Kxg3 Kd7 51. Nd1 Ke6 52. Nc3 Be8 53. Be3 Be7 54. h4 c5 55. Kf2
c4 56. Ke2 Bg6 57. Bd4 f5 58. f4 Bxh4 59. Ke3 Bf7 60. Bg7 Kd6 61. Bf8+ Kc6 62.
Ne2 Be1 63. Nd4+ Kd5 64. Nxf5 c3 65. Kd3 Bg6 66. Ke2 Bxf5 67. Kxe1 {1/2-1/2 
(67) Aronian,L (2815)-Kramnik,V (2795) London 2012}) 15. a4 b6 16. Bf4 c5 17.
Neg5 Bxg5 18. Nxg5 Nd4 {1/2-1/2 (38) Caruana,F (2781)-Karjakin,S (2780) Wijk
aan Zee 2013 und Weiß muss sich schön langsam um Ausgleich bemühen}) 14. Rd3 {
(13s)} Rd8 {(289s)} 15. Rxd8+ {(36s)} Bxd8 {(9s)} (15... Kxd8 {um den König
auf den Damenflügel zu bringen ist hier vermutlich weniger gut. Prinzipiell
verträgt sich der König auf c8 schlecht mit dem Vorstoß h5, da der f7 einer
Deckung bedarf.} 16. Rd1+ Kc8 17. Bxe7 Nxe7 18. Ng5 Rd8 19. Rxd8+ Kxd8 20.
Nxe6+ fxe6 21. f4 $14) 16. Rd1 {(8 s)} Bxg5 {(37s)} 17. Nxg5 {(7s)} Ke7 {(60s)}
18. Ne2 {Weiß bewegt den Sc3 in Richtung f4, von wo aus der Druck auf den Le6
ausübt und nach möglichem Sxe6 den Bauern zum zurückschlagen zwingt. (699s)}
Nh4 $1 {(274s)} (18... Bc8 19. Nf4 {und dieser Konstellation kann Schwarz
keine Fortschritte machen, während Weiß langsam die Stellung verbessern kann.}
g6 (19... f6 20. Ng6+ $18) 20. g3 $14 {[%cal Gg1g2,Gg2f3]}) 19. g3 {(920s)} (
19. Nf4 $2 Bf5 20. c4 f6 $1 $17) 19... Ng6 20. Nxe6 {(4s)} (20. f4 Bc8 $132)
20... fxe6 $1 {(488s)} (20... Kxe6 21. f4 {und Schwarz kann die dominante
Königsstellung nicht aufrecht erhalten, Weiß droht Sd4-Sf5} c5 22. Kf2 $14) 21.
f4 {(6s)} Rf8 {[%cal Gh5h4]} (21... h4 22. g4 Rf8 23. Rd4 c5 24. Re4) 22. Rd4 {
(766s)} (22. h4 {würde alle dynamischen Ansätze zunicht machen} Rd8 $5 23. Rxd8
Kxd8 $11) 22... c5 {(96s)} 23. Re4 {(16s)} Rd8 $1 {(6s)} (23... b6 24. Kf2 {
[%cal Gf2f3,Gg3g4]}) 24. Kf2 {(5s)} Rd1 {nun kommt So zu Gegenspiel. Dies ist
auch notwendig, da bei passiver Verteidigung die weißen Bauern am Königsflügel
wohl dennoch gefährlich geworden wären. (344s)} 25. g4 {(451s)} hxg4 {(544s)}
26. hxg4 {Diagramm [#] (24s)} b5 {So möchte seine eigene Bauernmehrheit in
Bewegung setzen, da weißes f5 ohnehin schwer zu verhindern ist. (5s)} (26...
Kf7 {hätte ebenso das Gleichgewicht gehalten} 27. f5 Ne7 (27... exf5 $5 28.
gxf5 Ne7 29. Ng3 Rd2+ 30. Re2 Rxe2+ 31. Kxe2 g6 $11) 28. fxe6+ Kxe6 29. Nf4+
Kd7 30. e6+ Kd6 31. Re2 $13) 27. f5 {(483s)} (27. a4 $5 {so könnte Weiß die
Kontrolle besser behalten und das Spiel in weniger forcierte Bahnen lenken.}
Rd2 (27... c6 28. Ke3 Ra1 29. Nc3 $14) 28. Ke3 Rxc2 29. Kd3 Rb2 30. Kc3 Ra2 31.
axb5 $13) 27... Nh4 {(285s)} 28. Ng3 {(32s)} Ra1 {(1029s)} 29. a4 {(434s)} Ra2
{(14s)} 30. axb5 {(7s)} Rxc2+ {(4s)} 31. Re2 {(6s)} Rxe2+ {(400s)} 32. Kxe2 {
[%cal Ge2d3,Gd3c4,Gc4c5] Diagramm [#] dieses Endspiel sollte bei genauem Spiel
Remis sein - Wesley So zeigt in dieser wichtigen Partie keine Nerven und zeigt
Übersicht und saubere Rechenleistung.} c4 $1 {So erkennt, dass seine einzige
Chance auf eine Freibauernbildung sofort genutzt werden muss. Mittels des
gefährlichen a-Bauern lenkt er den weißen König an den Brettrand. (3s)} 33.
bxc4 {(7s)} a4 {(2s)} 34. Kd3 {(234s)} Nf3 {(62s)} 35. f6+ {(184s)} Kf7 $1 {
(57s)} (35... gxf6 {wäre ebenso Remis gewesen, doch der Partiezug macht die
schwarze Aufgabe wesentlich leichter} 36. exf6+ Kxf6 37. Ne4+ Ke5 38. Nc3 a3
39. c5 Kf4 $1 40. Kc4 Ne5+ 41. Kb3 Kxg4 42. Kxa3 Kf4 (42... Kf5 $2 43. Kb4 Kf6
(43... Nd3+ $142 44. Kc4 Ne5+ 45. Kd4 Nf3+ 46. Ke3 Ne5 47. Na4 $14) 44. Ka5 Ke7
45. Ka6 Kd7 46. Kb7 $18) 43. Kb4 Nd3+ $1 44. Kc4 Ne5+ 45. Kd4 Nf3+ $1 $11) 36.
fxg7 {(27s)} Nxe5+ {(23s)} 37. Kc3 {(4s)} a3 {(4s)} 38. c5 {Diagramm [#] (16s)}
Nd3 $1 {der letzte genaue Zug und alle Klippen sind umschifft (339s)} 39. Kb3 {
(3s)} Nxc5+ {(3s)} 40. Kxa3 {(0s)} Kxg7 {(0s)} 41. Kb4 {(0s)} Nd3+ {(404s)} 42.
Kc4 {(52s)} Ne5+ {(387s)} 43. Kc5 {(6s)} Kh6 {(36s)} 44. Ne2 {(88s)} c6 $1 {
(124s)} 45. bxc6 {(6s)} (45. b6 Nd7+ 46. Kxc6 Nxb6 47. Kxb6 Kg5) 45... Nxc6 {
(3s)} 46. Kxc6 {(2s)} Kg5 {(5s)} 47. Kd6 {(1s)} Kxg4 {(4s)} 1/2-1/2

[Event "Paris FIDE GP"]
[Site "Elancourt"]
[Date "2013.10.04"]
[Round "11"]
[White "Giri, Anish"]
[Black "Nakamura, Hikaru"]
[Result "1/2-1/2"]
[ECO "C67"]
[WhiteElo "2737"]
[BlackElo "2772"]
[Annotator "ChessBase Website"]
[PlyCount "78"]
[EventDate "2013.09.22"]
[EventType "tourn"]
[EventRounds "11"]
[EventCountry "FRA"]
[EventCategory "20"]
[SourceTitle "CBM 157"]
[Source "ChessBase"]
[SourceDate "2013.11.12"]
[SourceVersion "1"]
[SourceVersionDate "2013.11.12"]
[SourceQuality "1"]
[TimeControl "40/7200:20/3600:900+30"]
[WhiteClock "2:00:00"]
[BlackClock "2:00:00"]

1. e4 {[%emt 0:00:05]} e5 {[%emt 0:00:39]} 2. Nf3 {[%emt 0:00:06]} Nc6 {
[%emt 0:00:05]} 3. Bb5 {[%emt 0:00:08]} Nf6 {[%emt 0:00:05]} 4. O-O Nxe4 {
[%emt 0:00:19]} 5. d4 {[%emt 0:01:30]} Nd6 {[%emt 0:00:16]} 6. Bxc6 {[%emt 0:
00:05]} dxc6 {[%emt 0:00:06]} 7. dxe5 {[%emt 0:00:04]} Nf5 {[%emt 0:00:06]} 8.
Qxd8+ {[%emt 0:00:02]} Kxd8 {[%emt 0:00:07]} 9. h3 {[%emt 0:00:01]} Bd7 {
[%emt 0:00:08]} 10. Rd1 {[%emt 0:00:16]} Kc8 {[%emt 0:00:06]} 11. g4 {[%emt 0:
02:19]} Ne7 {[%emt 0:00:25]} 12. Ng5 {[%emt 0:00:07]} Be8 {[%emt 0:00:04]} 13.
f4 {[%emt 0:01:10]} h5 {[%emt 0:00:49]} (13... b6 $5 {has been played by
Harikrishna.}) 14. Kf2 $146 {[%emt 0:00:57]} b6 {[%emt 0:02:52]} 15. f5 {
[%emt 0:04:10]} Kb7 {[%emt 0:03:28]} 16. c4 {[%emt 0:00:19]} c5 {[%emt 0:05:32]
} 17. Bf4 {[%emt 0:00:11]} Nc6 {[%emt 0:01:28]} 18. Nc3 {[%emt 0:05:30]} g6 {
[%emt 0:39:37]} 19. e6 {[%emt 0:05:53]} fxe6 20. Nxe6 {[%emt 0:10:34]} hxg4 $1
{[%emt 0:08:32] A very nice defensive move.'} (20... Rc8 {Romain Edouard} 21.
g5 gxf5 22. Nb5 Bf7 23. Nbxc7 Nd4 24. Nxf8 Rhxf8 25. Nb5 $16) 21. Nxc7 {
[%emt 0:03:01]} Bh6 $1 {[%emt 0:12:36]} 22. Bxh6 {[%emt 0:16:59]} (22. Bg3 $6
gxf5 $1 {is dubious for White will after}) (22. Bh2 $6 Be3+ $1 23. Kxe3 Rxh3+ {
Black is also alright, especially since} 24. Ke4 {is met by} gxf5+ 25. Kxf5
Nd4+ $1 $15) 22... Kxc7 {[%emt 0:00:57]} 23. Bf4+ {[%emt 0:03:58]} Kb7 {
[%emt 0:00:10]} 24. hxg4 {[%emt 0:08:00]} gxf5 {[%emt 0:00:13]} 25. g5 {
[%emt 0:06:43]} Rh4 $1 {[%emt 0:08:37] White seemed to be better, but actually
this move just draws by force.'} 26. Ne2 {[%emt 0:10:31]} Bh5 {[%emt 0:01:57]}
27. Rh1 {[%emt 0:03:03]} Rxh1 {[%emt 0:00:08]} 28. Rxh1 {[%emt 0:00:01]} Bxe2 {
[%emt 0:00:13]} 29. Kxe2 {[%emt 0:00:57]} Nd4+ {[%emt 0:00:06]} 30. Kd3 {
[%emt 0:07:03]} (30. Kf2 Ne6 31. Kf3 Rg8 {is a draw: White cannot breakthrough.
}) (30. Ke3 {seemed to me like the only chance, but is also a draw:} Re8+ 31.
Kf2 Re2+ (31... Ne6 $2 32. Re1 $16) 32. Kf1 (32. Kg3 Re4 $11) 32... Re4 (32...
Rxb2 $2 33. Rh7+ $16) 33. Rh4 (33. Rh7+ Ka6 34. Bb8 Nc6 35. Bd6 Rg4 $11) 33...
Nf3 34. Rh7+ Kc8 $1 (34... Ka6 $2 35. Bb8 $16) 35. g6 (35. Bc1 Rg4 $11) 35...
Rxf4 36. g7 Ne5+ $1 37. Kg2 Rg4+ 38. Kh3 Nxc4 $11) 30... Ne6 {[%emt 0:00:29]}
31. Rf1 {[%emt 0:01:20]} Rd8+ {[%emt 0:02:49]} 32. Kc3 {[%emt 0:01:13]} Rg8 {
[%emt 0:00:37]} 33. Be3 {[%emt 0:01:56]} f4 {[%emt 0:00:32]} 34. Bxf4 {[%emt 0:
00:05]} Nxf4 {[%emt 0:00:10]} 35. Rxf4 {[%emt 0:00:04]} Rxg5 {[%emt 0:00:05]}
36. Rf7+ {[%emt 0:00:03]} Kb8 {[%emt 0:00:03]} 37. Rf8+ {[%emt 0:00:02]} Kb7 {
[%emt 0:00:04]} 38. Rf7+ {[%emt 0:00:02]} Kb8 {[%emt 0:00:06]} 39. Rf8+ {
[%emt 0:00:02]} Kb7 {[%emt 0:00:04]} 1/2-1/2

[Event "Paris FIDE GP"]
[Site "Elancourt"]
[Date "2013.10.02"]
[Round "9"]
[White "Dominguez Perez, Leinier"]
[Black "Fressinet, Laurent"]
[Result "1/2-1/2"]
[ECO "C67"]
[WhiteElo "2757"]
[BlackElo "2708"]
[Annotator "ChessBase Website"]
[PlyCount "69"]
[EventDate "2013.09.22"]
[EventType "tourn"]
[EventRounds "11"]
[EventCountry "FRA"]
[EventCategory "20"]
[SourceTitle "CBM 157"]
[Source "ChessBase"]
[SourceDate "2013.11.12"]
[SourceVersion "1"]
[SourceVersionDate "2013.11.12"]
[SourceQuality "1"]
[TimeControl "40/7200:20/3600:900+30"]
[WhiteClock "2:00:00"]
[BlackClock "2:00:00"]

1. e4 {[%emt 0:00:04]} e5 {[%emt 0:00:04]} 2. Nf3 {[%emt 0:00:08]} Nc6 {
[%emt 0:00:04]} 3. Bb5 {[%emt 0:00:06]} Nf6 {[%emt 0:00:05]} 4. O-O {[%emt 0:
00:37]} Nxe4 {[%emt 0:00:38]} 5. d4 {[%emt 0:00:05]} Nd6 {[%emt 0:00:04]} 6.
Bxc6 {[%emt 0:00:05]} dxc6 {[%emt 0:00:03]} 7. dxe5 {[%emt 0:00:07]} Nf5 {
[%emt 0:00:03]} 8. Qxd8+ {[%emt 0:00:09]} Kxd8 {[%emt 0:00:04]} 9. h3 {[%emt 0:
03:48]} Bd7 {[%emt 0:00:31]} 10. Rd1 {[%emt 0:01:59]} Ke8 {[%emt 0:00:28]} 11.
Nc3 {[%emt 0:02:43]} h6 {[%emt 0:00:29]} 12. Bf4 {[%emt 0:01:43]} Rd8 {[%emt 0:
00:48]} 13. g4 {[%emt 0:01:12]} Ne7 {[%emt 0:00:08]} 14. Nd4 $146 {[%emt 0:00:
20]} (14. Kh2 Be6 15. Nd4 Nd5 16. Nxe6 fxe6 17. Nxd5 cxd5 {1/2-1/2 (17) Joecks,
C (2310)-Fischer Bad Orb 1989}) 14... Ng6 {[%emt 0:05:15]} 15. Bg3 {[%emt 0:01:
46]} h5 {[%emt 0:00:23]} 16. f3 {[%emt 0:00:29]} Bc5 {[%emt 0:25:55]} 17. Ne4 {
[%emt 0:00:24]} Bxd4+ {[%emt 0:07:40]} 18. Rxd4 {[%emt 0:00:04]} hxg4 {[%emt 0:
06:12]} 19. hxg4 {[%emt 0:02:04]} Ke7 {[%emt 0:02:45]} 20. Kf2 {[%emt 0:31:01]}
b6 {[%emt 0:13:58]} 21. Ra4 {[%emt 0:09:45]} Ra8 {[%emt 0:00:26]} 22. e6 {
[%emt 0:01:57]} fxe6 {[%emt 0:05:02]} 23. Ng5 {[%emt 0:16:20] The Frenchman
chose the ultra-solid Berlin defense. Dominguez tried the most typical
approach: go for the endgame and try to outplay Black in that position. His
only chance to obtain something in the position was to take on c7 on move 23,
but even then it seems that Black's position was solid enough and it would
have been hard to break through. Instead of that the inaccurate 23.Ng5
basically forced a draw as Black had no choice but to push e5 and then was
forced to defend it, creating a repetition.} e5 {[%emt 0:07:20]} 24. Re1 {
[%emt 0:01:03]} Kf6 {[%emt 0:00:39]} 25. Ne4+ {[%emt 0:00:46]} Kf7 {[%emt 0:01:
10]} 26. Ng5+ {[%emt 0:08:49]} Kf6 {[%emt 0:00:10]} 27. Ne4+ {[%emt 0:00:07]}
Kf7 {[%emt 0:00:04]} 28. Ra3 {[%emt 0:01:25]} c5 {[%emt 0:02:54]} 29. Ng5+ {
[%emt 0:01:57]} Kf6 {[%emt 0:00:06]} 30. Ne4+ {[%emt 0:00:06]} Kf7 {[%emt 0:00:
07]} 31. Rae3 {[%emt 0:01:28]} Rae8 {[%emt 0:04:35]} 32. Ng5+ {[%emt 0:02:06]}
Kf6 {[%emt 0:00:04]} 33. Ne4+ {[%emt 0:00:06]} Kf7 {[%emt 0:00:03]} 34. Ng5+ {
[%emt 0:12:08]} Kf6 {[%emt 0:00:18]} 35. Ne4+ {[%emt 0:00:05]} 1/2-1/2